bitfinex/quotes_BTCUSD_20240915
["timestamp","ask_amount","ask_price","bid_price","bid_amount"]
[1726437643810,1.27282304,59725.0,59723.0,0.000821]
[1726437644279,0.93795504,59725.0,59723.0,0.000821]
[1726437645189,0.94295504,59725.0,59723.0,0.000821]
[1726437645834,0.94295504,59725.0,59724.0,0.001822]
[1726437645835,1.45126504,59725.0,59724.0,0.001822]
[1726437647233,0.69473833,59725.0,59724.0,0.001822]
[1726437647469,0.52730433,59725.0,59724.0,0.504131]
[1726437647728,0.52730433,59725.0,59724.0,1.44511281]
[1726437647729,0.44930433,59725.0,59724.0,1.44511281]
[1726437647955,0.46327675,59725.0,59724.0,1.92652581]
[1726437648184,0.01397242,59725.0,59724.0,2.09776602]
[1726437648396,0.0782,59745.0,59734.0,0.334813]
[1726437648624,0.0782,59745.0,59738.0,0.167397]
[1726437648625,0.2511448,59739.0,59738.0,0.167397]
[1726437648858,0.01164301,59744.0,59734.0,0.334817]
[1726437649101,0.01164301,59744.0,59725.0,0.1]
[1726437649102,0.01164301,59744.0,59731.0,0.01939888]
[1726437649324,0.01164301,59744.0,59736.0,0.167401]
[1726437649325,0.167388,59742.0,59736.0,0.167401]
[1726437649575,0.167388,59742.0,59736.0,0.1674]
[1726437649809,0.01164419,59741.0,59737.0,0.1674]
[1726437650074,0.01164419,59741.0,59724.0,0.000822]
[1726437650075,0.0991,59738.0,59724.0,0.000822]
[1726437650300,0.167434,59725.0,59724.0,0.000822]
[1726437650519,0.167436,59724.0,59714.0,0.000822]
[1726437650736,0.5190524,59724.0,59714.0,0.000822]
[1726437650992,0.83721,59722.0,59714.0,0.000822]
[1726437651213,0.413584,59722.0,59714.0,0.000822]
[1726437651434,0.502351,59719.0,59714.0,0.000822]
[1726437651696,0.837252,59719.0,59714.0,0.000822]
[1726437651934,1.20116754,59719.0,59714.0,0.000822]
[1726437652640,0.83731,59715.0,59714.0,0.000822]
[1726437653070,0.84002434,59715.0,59714.0,0.000822]
[1726437653776,1.34241434,59715.0,59714.0,0.000822]
[1726437654206,1.67733834,59715.0,59714.0,0.000822]
[1726437654432,1.68833834,59715.0,59714.0,0.001822]
[1726437654654,1.85957855,59715.0,59714.0,0.001822]
[1726437655356,1.172293,59712.0,59711.0,0.001644]
[1726437655616,1.674683,59712.0,59711.0,0.001644]
[1726437655841,1.68900127,59712.0,59711.0,0.001644]
[1726437656315,1.35406027,59712.0,59711.0,0.001644]
[1726437656767,1.36306027,59712.0,59711.0,0.002644]
[1726437657013,1.03811927,59712.0,59711.0,0.003644]
[1726437657525,0.53570827,59712.0,59711.0,0.003644]
[1726437657769,0.53570827,59712.0,59711.0,0.171117]
[1726437658230,0.53570827,59712.0,59711.0,0.506063]
[1726437658486,0.606025,59712.0,59711.0,0.506063]
[1726437658722,0.58170673,59712.0,59711.0,0.170117]
[1726437658953,0.59311222,59712.0,59711.0,0.171117]
[1726437659176,0.60311222,59712.0,59711.0,0.171117]
[1726437659407,0.52672029,59712.0,59711.0,0.169117]
[1726437659622,0.53972029,59712.0,59711.0,0.170117]
[1726437659849,0.52572029,59712.0,59711.0,0.170117]
[1726437660059,0.58603832,59712.0,59711.0,0.169117]
[1726437660275,0.61631516,59712.0,59711.0,0.169117]
[1726437660506,0.53869713,59712.0,59711.0,1.44519081]
[1726437660726,0.53869713,59712.0,59711.0,1.83313681]
[1726437660974,0.04860713,59712.0,59711.0,1.46819081]
[1726437661200,0.001646,59725.0,59717.0,0.1]
[1726437661430,0.29119174,59726.0,59711.0,0.001644]
[1726437661645,0.16747,59713.0,59711.0,0.001644]
[1726437661873,0.33493,59714.0,59711.0,0.001644]
[1726437661874,0.16747,59712.0,59711.0,0.001644]
[1726437662103,0.33493,59714.0,59711.0,0.001644]
[1726437662334,0.01254786,59712.0,59711.0,0.010644]
[1726437662580,0.001,59712.0,59711.0,0.010644]
[1726437662817,0.01250327,59712.0,59711.0,0.011644]
[1726437663037,0.167466,59714.0,59711.0,0.002644]
[1726437663269,0.17901786,59712.0,59711.0,0.001644]
[1726437663511,0.16747,59712.0,59711.0,0.002644]
[1726437663724,0.01154786,59712.0,59711.0,0.002644]
[1726437664244,0.16747,59712.0,59711.0,0.001644]
[1726437664459,0.51370964,59712.0,59711.0,0.001644]
[1726437664918,0.53998682,59712.0,59711.0,0.001644]
[1726437665410,0.53998682,59712.0,59711.0,0.007644]
[1726437665627,0.51370964,59712.0,59711.0,0.007644]
[1726437665872,0.9335146,59712.0,59711.0,0.007644]
[1726437666118,1.3506556,59712.0,59711.0,0.007644]
[1726437666335,1.3486556,59712.0,59711.0,0.007644]
[1726437667038,1.3486556,59712.0,59700.0,0.0031808]
[1726437667039,0.33495,59711.0,59700.0,0.0031808]
[1726437667264,0.837505,59701.0,59700.0,0.0031808]
[1726437667517,0.79372874,59697.0,59696.0,0.001644]
[1726437667754,1.46377874,59697.0,59696.0,0.001644]
[1726437667995,1.63055819,59697.0,59696.0,0.001644]
[1726437668233,1.62637547,59697.0,59696.0,0.001644]
[1726437668913,1.36146944,59697.0,59696.0,0.001644]
[1726437669404,1.36946944,59697.0,59696.0,0.002644]
[1726437670072,1.38346944,59697.0,59696.0,0.003644]
[1726437670996,1.38346944,59697.0,59676.0,0.25686191]
[1726437670997,0.21506516,59697.0,59676.0,0.0055909]
[1726437671227,0.335094,59685.0,59676.0,0.0055909]
[1726437671439,0.05979818,59697.0,59676.0,0.0055909]
[1726437671440,0.335099,59684.0,59676.0,0.0055909]
[1726437671665,0.335106,59683.0,59677.0,0.167566]
[1726437671887,0.502705,59677.0,59676.0,0.0055909]
[1726437672116,1.252479,59677.0,59676.0,0.0055909]
[1726437672355,1.26159943,59677.0,59676.0,0.0075909]
[1726437672582,1.26159943,59677.0,59676.0,0.0065909]
[1726437672831,1.39687937,59677.0,59676.0,0.0055909]
[1726437673027,1.39687937,59677.0,59676.0,0.0115909]
[1726437673248,1.39787937,59677.0,59676.0,0.0115909]
[1726437673479,1.06774237,59677.0,59676.0,0.0115909]
[1726437673696,1.06674237,59677.0,59676.0,0.0055909]
[1726437675128,1.07674237,59677.0,59676.0,0.0055909]
[1726437675370,1.07174237,59677.0,59676.0,0.0055909]
[1726437675601,1.08574237,59677.0,59676.0,0.0055909]
[1726437675838,1.42687937,59677.0,59676.0,0.0055909]
[1726437676078,1.42087937,59677.0,59676.0,0.0055909]
[1726437676316,1.06174237,59677.0,59676.0,0.0055909]
[1726437676548,1.07474237,59677.0,59676.0,0.0055909]
[1726437676817,1.42287937,59677.0,59676.0,0.0055909]
[1726437677066,1.07474237,59677.0,59676.0,0.0055909]
[1726437677299,1.08774237,59677.0,59676.0,0.0055909]
[1726437677532,1.07474237,59677.0,59676.0,0.0055909]
[1726437677779,1.40987937,59677.0,59676.0,0.0055909]
[1726437678512,1.07474237,59677.0,59676.0,0.0055909]
[1726437678744,1.06174237,59677.0,59676.0,0.0055909]
[1726437678971,1.07574237,59677.0,59676.0,0.0055909]
[1726437680132,1.06174237,59677.0,59676.0,0.0055909]
[1726437680365,1.07574237,59677.0,59676.0,0.0055909]
[1726437680645,1.08974237,59677.0,59676.0,0.0065909]
[1726437682061,0.00912043,59677.0,59676.0,0.0055909]
[1726437682303,0.02840828,59677.0,59676.0,0.3417339]
[1726437682575,0.00492064,59703.0,59688.0,0.335072]
[1726437682576,0.167517,59696.0,59688.0,0.335072]
[1726437682807,0.0765,59697.0,59688.0,0.335072]
[1726437683043,0.0765,59697.0,59690.0,0.335062]
[1726437683289,0.0765,59697.0,59676.0,0.4407339]
[1726437683290,0.167533,59690.0,59679.0,0.335124]
[1726437683756,0.167527,59692.0,59686.0,0.335086]
[1726437683992,0.167527,59692.0,59688.0,0.168537]
[1726437684485,0.001646,59689.0,59688.0,0.001]
[1726437684941,0.001646,59689.0,59688.0,0.168537]
[1726437685176,0.001646,59689.0,59688.0,0.169537]
[1726437685419,0.001646,59689.0,59688.0,0.503612]
[1726437685641,0.001646,59689.0,59688.0,0.502612]
[1726437685866,0.002646,59689.0,59688.0,0.167537]
[1726437686093,0.002646,59689.0,59688.0,0.502612]
[1726437686352,0.004646,59689.0,59688.0,0.502612]
[1726437686588,0.004646,59689.0,59688.0,0.837687]
[1726437686830,0.004646,59689.0,59688.0,1.2565318]
[1726437687061,0.001646,59689.0,59688.0,1.24712455]
[1726437687316,0.001646,59689.0,59688.0,0.77884781]
[1726437687555,0.001646,59689.0,59688.0,0.51653493]
[1726437687789,0.001646,59689.0,59688.0,0.942687]
[1726437688035,0.001646,59689.0,59688.0,1.47942995]
[1726437688263,0.001646,59689.0,59688.0,2.39871846]
[1726437688498,0.02628604,59697.0,59696.0,0.502545]
[1726437688732,0.33498,59705.0,59699.0,0.167505]
[1726437688976,0.167496,59703.0,59699.0,0.167505]
[1726437689213,0.36126155,59705.0,59695.0,0.335035]
[1726437689214,0.167501,59701.0,59695.0,0.335035]
[1726437689435,0.167499,59702.0,59696.0,0.33503]
[1726437689804,0.167496,59703.0,59699.0,0.167506]
[1726437689806,0.334988,59704.0,59698.0,0.167508]
[1726437690010,0.167498,59702.0,59699.0,0.006]
[1726437690438,0.167497,59703.0,59699.0,0.004]
[1726437690649,0.167504,59700.0,59699.0,0.004]
[1726437690849,0.83752,59700.0,59699.0,0.004]
[1726437691224,0.502512,59700.0,59699.0,0.004]
[1726437691643,0.167512,59697.0,59696.0,0.004]
[1726437691884,0.167512,59697.0,59696.0,0.009]
[1726437692121,0.167512,59697.0,59696.0,0.005]
[1726437692752,0.502537,59697.0,59696.0,0.005]
[1726437692974,0.502537,59697.0,59687.0,0.33508]
[1726437692975,0.003,59697.0,59683.0,0.335099]
[1726437693195,0.003,59697.0,59684.0,0.1]
[1726437693196,0.33506,59691.0,59684.0,0.1]
[1726437693412,0.167534,59690.0,59686.0,0.167541]
[1726437693625,0.167534,59690.0,59684.0,0.435097]
[1726437693626,0.167535,59689.0,59684.0,0.602643]
[1726437693839,0.167535,59689.0,59685.0,0.167545]
[1726437694070,0.167531,59691.0,59687.0,0.167539]
[1726437694941,0.19381673,59691.0,59687.0,0.167539]
[1726437695381,0.167538,59688.0,59684.0,0.1]
[1726437695609,0.167538,59688.0,59687.0,0.007]
[1726437696246,0.502613,59688.0,59687.0,0.007]
[1726437696250,0.167538,59688.0,59687.0,0.003]
[1726437696456,0.167538,59688.0,59686.0,0.000823]
[1726437696677,0.168538,59688.0,59686.0,0.000823]
[1726437697337,0.001,59688.0,59686.0,0.000823]
[1726437697554,0.002,59688.0,59686.0,0.000823]
[1726437697779,0.169538,59688.0,59686.0,0.000823]
[1726437698040,0.001,59688.0,59686.0,0.000823]
[1726437698265,0.005,59688.0,59686.0,0.000823]
[1726437698488,0.177538,59688.0,59686.0,0.000823]
[1726437698714,0.16754,59687.0,59686.0,0.000823]
[1726437699658,0.03628693,59688.0,59686.0,0.000823]
[1726437700827,0.03628693,59688.0,59686.0,0.168365]
[1726437701033,0.004,59687.0,59686.0,0.168365]
[1726437702480,0.008,59687.0,59686.0,0.168365]
[1726437707175,0.008,59687.0,59686.0,0.000823]
[1726437709901,0.008,59687.0,59686.0,0.168366]
[1726437710616,0.008,59687.0,59686.0,1.2239705]
[1726437710855,0.008,59687.0,59686.0,2.09613755]
[1726437711068,0.001646,59703.0,59686.0,2.09613755]
[1726437711069,0.001646,59703.0,59702.0,0.837492]
[1726437711303,0.001646,59703.0,59702.0,1.172489]
[1726437711795,0.001646,59703.0,59702.0,0.9547409]
[1726437712771,0.002646,59703.0,59702.0,0.9637409]
[1726437712995,0.002646,59703.0,59702.0,0.9547409]
[1726437714132,0.002646,59703.0,59702.0,0.9637409]
[1726437714133,0.003646,59703.0,59702.0,0.9637409]
[1726437714577,0.002646,59703.0,59702.0,0.9547409]
[1726437715006,0.003646,59703.0,59702.0,0.9687409]
[1726437716092,0.003646,59703.0,59702.0,1.3037379]
[1726437716331,0.003646,59703.0,59702.0,1.4037379]
[1726437720054,0.003646,59703.0,59702.0,1.286489]
[1726437720460,0.003646,59703.0,59702.0,0.951492]
[1726437720725,0.003646,59703.0,59702.0,0.616495]
[1726437721924,0.003646,59703.0,59702.0,0.951492]
[1726437722148,0.003646,59703.0,59702.0,0.616495]
[1726437723692,0.171141,59703.0,59702.0,0.014]
[1726437723937,0.253141,59703.0,59702.0,0.014]
[1726437724171,0.6148361,59703.0,59702.0,0.014]
[1726437724881,0.64111804,59703.0,59702.0,0.014]
[1726437725098,0.61441394,59703.0,59702.0,0.014]
[1726437725328,0.167501,59701.0,59697.0,0.167511]
[1726437726007,0.167507,59699.0,59695.0,0.167517]
[1726437726189,0.502508,59701.0,59696.0,0.167515]
[1726437726450,0.502508,59701.0,59694.0,0.335038]
[1726437726451,0.167503,59701.0,59697.0,0.167512]
[1726437726686,0.170503,59701.0,59697.0,0.167512]
[1726437726902,0.338007,59701.0,59695.0,0.167515]
[1726437727114,0.335009,59700.0,59692.0,0.335053]
[1726437727328,0.167513,59697.0,59692.0,0.335053]
[1726437727552,0.335009,59700.0,59694.0,0.167519]
[1726437727765,0.167511,59698.0,59694.0,0.167519]
[1726437728035,0.167511,59698.0,59692.0,0.335053]
[1726437728257,0.167511,59698.0,59690.0,0.335064]
[1726437728258,0.167516,59696.0,59690.0,0.335064]
[1726437728485,0.167519,59695.0,59691.0,0.267528]
[1726437728740,0.0942,59693.0,59686.0,0.000823]
[1726437728978,0.502621,59687.0,59686.0,0.000823]
[1726437729403,0.580021,59687.0,59686.0,0.000823]
[1726437729849,0.24494,59687.0,59686.0,0.000823]
[1726437730321,0.0874,59687.0,59686.0,0.839538]
[1726437730584,0.0814,59687.0,59686.0,0.838538]
[1726437731043,0.0874,59687.0,59686.0,0.839538]
[1726437731271,0.0814,59687.0,59686.0,0.503452]
[1726437731510,0.0864,59687.0,59686.0,0.503452]
[1726437731966,0.0824,59687.0,59686.0,0.503452]
[1726437732467,0.0874,59687.0,59686.0,0.503452]
[1726437732940,0.0824,59687.0,59686.0,0.503452]
[1726437733166,0.0774,59687.0,59686.0,0.508452]
[1726437733381,0.0774,59687.0,59686.0,0.843538]
[1726437733603,0.0786,59697.0,59696.0,0.167515]
[1726437734052,0.0786,59697.0,59696.0,0.502545]
[1726437734277,0.078533,59697.0,59696.0,0.502545]
[1726437734572,0.078533,59697.0,59696.0,0.837575]
[1726437734794,0.078533,59697.0,59696.0,0.502545]
[1726437735299,0.084533,59697.0,59686.0,0.005823]
[1726437735522,0.167568,59677.0,59671.0,0.05012287]
[1726437735737,0.167568,59677.0,59667.0,0.05012287]
[1726437735972,0.167568,59677.0,59666.0,80.37013804]
[1726437735973,0.502705,59677.0,59666.0,80.37013804]
[1726437736208,0.502705,59677.0,59669.0,0.33518]
[1726437736443,0.502705,59677.0,59668.0,0.167593]
[1726437736719,0.001,59677.0,59676.0,0.006]
[1726437736937,0.335182,59669.0,59666.0,80.37013804]
[1726437737161,0.167596,59667.0,59666.0,80.37013804]
[1726437737395,0.250696,59667.0,59666.0,80.37013804]
[1726437737649,0.585889,59667.0,59666.0,80.37013804]
[1726437737854,0.921082,59667.0,59666.0,80.37013804]
[1726437738566,0.585889,59667.0,59666.0,80.37013804]
[1726437739017,1.02590002,59667.0,59666.0,80.37013804]
[1726437739473,1.36209302,59667.0,59666.0,80.27013804]
[1726437739716,1.36109302,59667.0,59666.0,80.08683804]
[1726437739927,1.36109302,59667.0,59666.0,80.08883804]
[1726437740193,0.0911,59667.0,59666.0,80.08983804]
[1726437740446,0.0826,59675.0,59666.0,80.08683804]
[1726437740652,0.0826,59684.0,59666.0,80.25907825]
[1726437740924,0.0826,59684.0,59666.0,80.08783804]
[1726437741140,0.167567,59678.0,59672.0,0.167581]
[1726437741367,0.16757,59677.0,59672.0,0.167581]
[1726437741609,0.167574,59675.0,59668.0,0.335186]
[1726437741822,0.0502677,59678.0,59666.0,80.08783804]
[1726437741823,0.502789,59667.0,59666.0,80.08783804]
[1726437742073,0.920582,59667.0,59666.0,80.08783804]
[1726437742312,1.255775,59667.0,59666.0,80.08683804]
[1726437743023,1.269775,59667.0,59666.0,80.08783804]
[1726437743240,1.43576193,59667.0,59666.0,80.08783804]
[1726437743469,1.42176193,59667.0,59666.0,80.08683804]
[1726437743694,1.42176193,59667.0,59666.0,80.08783804]
[1726437743923,1.42576193,59667.0,59666.0,80.08683804]
[1726437744188,1.42976193,59667.0,59666.0,80.08683804]
[1726437744403,1.42176193,59667.0,59666.0,80.08683804]
[1726437744847,1.43076193,59667.0,59666.0,80.08683804]
[1726437745077,1.43076193,59667.0,59666.0,80.08766104]
[1726437745508,1.45706133,59667.0,59666.0,80.08766104]
[1726437745719,1.43076193,59667.0,59666.0,80.08766104]
[1726437747301,1.93355193,59667.0,59666.0,80.08766104]
[1726437748233,1.59835893,59667.0,59666.0,80.08766104]
[1726437748685,1.62465806,59667.0,59666.0,80.08766104]
[1726437748911,0.62068913,59667.0,59666.0,80.08766104]
[1726437749161,0.62068913,59667.0,59666.0,80.25526004]
[1726437749162,0.51179,59667.0,59666.0,80.25526004]
[1726437749407,0.51179,59667.0,59666.0,80.59045904]
[1726437749924,0.50279,59667.0,59666.0,80.92565804]
[1726437750152,0.50679,59667.0,59666.0,80.92565804]
[1726437750387,0.50279,59667.0,59666.0,80.92565804]
[1726437751846,0.50279,59667.0,59666.0,80.08766104]
[1726437752090,1.391051,59667.0,59666.0,80.08766104]
[1726437752329,1.726244,59667.0,59666.0,80.08766104]
[1726437752810,2.71103131,59667.0,59666.0,79.56610396]
[1726437753051,2.97922431,59667.0,59666.0,78.96991921]
[1726437753274,3.19043831,59667.0,59666.0,76.59550094]
[1726437753490,3.19043831,59667.0,59666.0,72.59590094]
[1726437753491,3.20470183,59667.0,59666.0,72.59590094]
[1726437753766,3.20670183,59667.0,59666.0,70.59610094]
[1726437754003,2.569351,59667.0,59666.0,70.59610094]
[1726437754217,2.914544,59667.0,59666.0,70.59710094]
[1726437754448,2.93146721,59667.0,59666.0,70.59810094]
[1726437754680,2.92746721,59667.0,59666.0,70.59710094]
[1726437754930,2.97159442,59667.0,59666.0,70.59710094]
[1726437755155,2.91146721,59667.0,59666.0,70.59810094]
[1726437755390,2.94146721,59667.0,59666.0,70.59810094]
[1726437755621,2.92746721,59667.0,59666.0,70.59710094]
[1726437756022,2.94146721,59667.0,59666.0,70.59710094]
[1726437756923,2.94311321,59667.0,59666.0,70.59710094]
[1726437758039,2.98724042,59667.0,59666.0,70.59710094]
[1726437758762,3.01354849,59667.0,59666.0,70.59710094]
[1726437759444,2.96942128,59667.0,59666.0,70.59710094]
[1726437759665,2.27603528,59667.0,59666.0,70.59710094]
[1726437759885,2.31694821,59667.0,59666.0,70.59710094]
[1726437760350,2.30294821,59667.0,59666.0,70.59710094]
[1726437760567,2.24294821,59667.0,59666.0,70.59710094]
[1726437760791,2.27494821,59667.0,59666.0,70.59610094]
[1726437761002,2.28894821,59667.0,59666.0,70.59610094]
[1726437761637,2.30294821,59667.0,59666.0,70.59610094]
[1726437762069,2.35225329,59667.0,59666.0,70.59610094]
[1726437762290,2.33825329,59667.0,59666.0,70.59610094]
[1726437762501,2.35225329,59667.0,59666.0,70.59610094]
[1726437763836,2.68744629,59667.0,59666.0,70.59610094]
[1726437764260,2.35225329,59667.0,59666.0,70.59610094]
[1726437764474,2.68744629,59667.0,59666.0,70.59610094]
[1726437766728,2.86394629,59667.0,59666.0,70.59610094]
[1726437766973,2.68744629,59667.0,59666.0,70.59610094]
[1726437767178,3.19913929,59667.0,59666.0,69.93644213]
[1726437767387,3.17283421,59667.0,59666.0,69.93644213]
[1726437767602,2.88176842,59667.0,59666.0,69.93644213]
[1726437767825,2.66114121,59667.0,59666.0,69.93644213]
[1726437768262,2.30294821,59667.0,59666.0,69.93644213]
[1726437768935,2.27494821,59667.0,59666.0,69.93644213]
[1726437769168,2.30294821,59667.0,59666.0,69.93644213]
[1726437769631,2.64714121,59667.0,59666.0,69.93644213]
[1726437769846,2.32594821,59667.0,59666.0,69.93644213]
[1726437770291,2.33994821,59667.0,59666.0,69.93644213]
[1726437770508,2.33825643,59667.0,59666.0,69.93644213]
[1726437770959,1.86606343,59667.0,59666.0,69.93644213]
[1726437771431,1.88006343,59667.0,59666.0,69.93644213]
[1726437771886,2.21525643,59667.0,59666.0,69.93644213]
[1726437772872,2.68744943,59667.0,59666.0,69.93644213]
[1726437773189,2.67344943,59667.0,59666.0,69.85314213]
[1726437773409,2.68744943,59667.0,59666.0,69.85314213]
[1726437773634,2.67344943,59667.0,59666.0,69.85314213]
[1726437773861,2.65944943,59667.0,59666.0,69.85314213]
[1726437774078,2.67344943,59667.0,59666.0,69.85314213]
[1726437774294,2.68744943,59667.0,59666.0,69.85314213]
[1726437775175,2.35225643,59667.0,59666.0,69.85314213]
[1726437775637,2.30094821,59667.0,59666.0,69.85314213]
[1726437775881,2.18694821,59667.0,59666.0,69.85314213]
[1726437776124,2.20094821,59667.0,59666.0,69.85314213]
[1726437776376,2.18694821,59667.0,59666.0,69.85314213]
[1726437776806,1.80575521,59667.0,59666.0,69.85314213]
[1726437777052,1.87575521,59667.0,59666.0,69.85314213]
[1726437777258,1.90575521,59667.0,59666.0,69.85314213]
[1726437777713,2.27294821,59667.0,59666.0,69.85314213]
[1726437777954,2.25894821,59667.0,59666.0,69.85314213]
[1726437778423,2.30294821,59667.0,59666.0,69.85314213]
[1726437778652,2.28894821,59667.0,59666.0,69.85314213]
[1726437779086,2.32925427,59667.0,59666.0,69.85314213]
[1726437779570,2.30125427,59667.0,59666.0,69.85314213]
[1726437779782,2.31525427,59667.0,59666.0,69.85314213]
[1726437780005,2.32925427,59667.0,59666.0,69.85314213]
[1726437780430,2.31525427,59667.0,59666.0,69.85314213]
[1726437780680,1.93206127,59667.0,59666.0,69.85314213]
[1726437780916,1.11767527,59667.0,59666.0,69.85314213]
[1726437781130,1.12875206,59667.0,59666.0,69.85314213]
[1726437781827,1.12875206,59667.0,59666.0,69.84814213]
[1726437781828,1.04753106,59667.0,59666.0,69.84814213]
[1726437782068,1.38272406,59667.0,59666.0,69.84814213]
[1726437782277,1.73191706,59667.0,59666.0,69.84814213]
[1726437782764,0.9390739,59667.0,59666.0,69.84814213]
[1726437782972,0.9230739,59667.0,59666.0,69.84814213]
[1726437783386,0.9110739,59667.0,59666.0,69.84814213]
[1726437783597,0.9240739,59667.0,59666.0,69.84814213]
[1726437783818,0.9360739,59667.0,59666.0,69.84814213]
[1726437784062,0.42072731,59667.0,59666.0,69.84814213]
[1726437784323,0.03,59682.0,59666.0,69.93894213]
[1726437784512,0.502789,59667.0,59666.0,69.93894213]
[1726437784983,0.50275,59667.0,59666.0,69.93894213]
[1726437785224,1.03184061,59667.0,59666.0,69.84814213]
[1726437785447,0.69664761,59667.0,59666.0,69.84814213]
[1726437785716,0.54105161,59667.0,59666.0,69.84814213]
[1726437785934,0.70864761,59667.0,59666.0,69.84914213]
[1726437786153,0.69664761,59667.0,59666.0,69.84914213]
[1726437786365,1.03484061,59667.0,59666.0,69.84814213]
[1726437786598,0.31795161,59667.0,59666.0,69.84814213]
[1726437786807,0.21795161,59667.0,59666.0,69.84814213]
[1726437787265,1.05593361,59667.0,59666.0,69.84814213]
[1726437787509,1.39112661,59667.0,59666.0,69.84814213]
[1726437787932,0.72074061,59667.0,59666.0,69.84814213]
[1726437788210,0.71774061,59667.0,59666.0,69.84814213]
[1726437788440,0.71774061,59667.0,59666.0,69.84914213]
[1726437788441,1.037632,59667.0,59666.0,69.84914213]
[1726437788865,1.023632,59667.0,59666.0,69.84814213]
[1726437789120,1.369825,59667.0,59666.0,69.84914213]
[1726437789346,1.382825,59667.0,59666.0,69.85014213]
[1726437790230,1.380825,59667.0,59666.0,69.85014213]
[1726437790453,1.382825,59667.0,59666.0,69.85014213]
[1726437791102,1.40912861,59667.0,59666.0,69.85014213]
[1726437791579,1.40712861,59667.0,59666.0,69.85014213]
[1726437791793,1.07193561,59667.0,59666.0,69.85014213]
[1726437792065,1.07357961,59667.0,59666.0,69.85014213]
[1726437793881,0.23559761,59667.0,59666.0,69.85014213]
[1726437794137,0.73838661,59667.0,59666.0,69.85014213]
[1726437795067,0.712083,59667.0,59666.0,69.85014213]
[1726437796297,0.04739184,59667.0,59666.0,70.64028034]
[1726437796539,0.001646,59677.0,59673.0,0.335156]
[1726437796789,0.001646,59677.0,59676.0,0.19456633]
[1726437797032,0.001646,59677.0,59668.0,0.335184]
[1726437797033,0.02629924,59675.0,59668.0,0.335184]
[1726437797268,0.02629924,59675.0,59674.0,0.167577]
[1726437797507,0.02629924,59675.0,59674.0,0.502731]
[1726437797720,0.02629924,59675.0,59674.0,0.837885]
[1726437797967,0.02629924,59675.0,59674.0,1.173039]
[1726437798443,0.001646,59677.0,59674.0,1.173039]
[1726437798444,0.001646,59677.0,59676.0,0.502714]
[1726437798900,0.001646,59677.0,59676.0,0.837857]
[1726437799352,0.006646,59677.0,59676.0,0.837857]
[1726437799992,0.03294301,59677.0,59676.0,0.837857]
[1726437800210,0.03294301,59677.0,59676.0,0.841857]
[1726437800648,1.06552199,59695.0,59676.0,0.841857]
[1726437800649,0.167524,59693.0,59687.0,0.167539]
[1726437800880,0.92145053,59692.0,59685.0,0.167546]
[1726437801107,0.16753,59691.0,59685.0,0.167546]
[1726437801322,0.5026,59690.0,59686.0,0.167542]
[1726437803121,0.5026,59690.0,59686.0,0.168542]
[1726437804030,0.5026,59690.0,59686.0,0.001]
[1726437804251,0.5026,59690.0,59686.0,0.168542]
[1726437804477,0.5026,59690.0,59686.0,0.167542]
[1726437804689,0.53289443,59690.0,59686.0,0.167542]
[1726437804951,0.53289443,59690.0,59684.0,0.167548]
[1726437805402,0.53289443,59690.0,59682.0,0.335107]
[1726437805618,0.5066,59690.0,59684.0,0.167548]
[1726437805840,0.502621,59687.0,59686.0,0.001]
[1726437806057,0.167545,59686.0,59677.0,0.335133]
[1726437806293,0.84521468,59687.0,59679.0,0.167561]
[1726437806538,0.167547,59685.0,59679.0,0.167561]
[1726437806764,0.167547,59685.0,59670.0,0.335171]
[1726437806765,0.167571,59677.0,59670.0,0.167587]
[1726437806974,0.51013368,59687.0,59675.0,0.167571]
[1726437806975,0.167558,59681.0,59675.0,0.167571]
[1726437807197,0.51013368,59687.0,59676.0,0.167569]
[1726437807198,0.167556,59682.0,59676.0,0.167569]
[1726437807429,0.5026,59687.0,59676.0,0.167569]
[1726437807430,0.167557,59681.0,59676.0,0.167569]
[1726437807652,0.335124,59680.0,59669.0,0.335179]
[1726437807910,0.335124,59680.0,59667.0,0.2924975]
[1726437807911,0.167581,59673.0,59667.0,0.168417]
[1726437808149,0.167581,59673.0,59668.0,0.167593]
[1726437808376,0.335153,59675.0,59668.0,0.167593]
[1726437808631,0.167594,59668.0,59667.0,0.000822]
[1726437808871,0.03,59680.0,59667.0,0.000822]
[1726437809127,0.335174,59671.0,59669.0,0.001]
[1726437809368,0.167588,59670.0,59667.0,0.000822]
[1726437810091,0.167588,59670.0,59667.0,0.003822]
[1726437810320,0.167594,59668.0,59667.0,0.004822]
[1726437810565,0.502782,59668.0,59667.0,0.004822]
[1726437810805,0.83797,59668.0,59667.0,0.004822]
[1726437811511,1.173158,59668.0,59667.0,0.001822]
[1726437811747,1.173158,59668.0,59667.0,0.000822]
[1726437811987,1.173158,59668.0,59667.0,0.003822]
[1726437812222,0.83797,59668.0,59667.0,0.001822]
[1726437812712,0.84797,59668.0,59667.0,0.001822]
[1726437812942,0.85697,59668.0,59667.0,0.002822]
[1726437813189,0.521782,59668.0,59667.0,0.002822]
[1726437813456,0.85697,59668.0,59667.0,0.002822]
[1726437813697,1.35957,59668.0,59667.0,0.002822]
[1726437817929,1.34057,59668.0,59667.0,0.000822]
[1726437818153,1.35457,59668.0,59667.0,0.001822]
[1726437818369,1.36357,59668.0,59667.0,0.001822]
[1726437818582,1.37757,59668.0,59667.0,0.002822]
[1726437818812,1.37757,59668.0,59667.0,0.001822]
[1726437819071,1.36857,59668.0,59667.0,0.001822]
[1726437819289,1.37757,59668.0,59667.0,0.002822]
[1726437820685,1.712758,59668.0,59667.0,0.002822]
[1726437821580,1.37757,59668.0,59667.0,0.002822]
[1726437821819,1.042382,59668.0,59667.0,0.002822]
[1726437822274,1.37757,59668.0,59667.0,0.002822]
[1726437824137,0.707194,59668.0,59667.0,0.002822]
[1726437824363,1.042382,59668.0,59667.0,0.002822]
[1726437824604,0.874788,59668.0,59667.0,0.002822]
[1726437824849,1.37757,59668.0,59667.0,0.002822]
[1726437825335,1.033382,59668.0,59667.0,0.001822]
[1726437825560,0.698194,59668.0,59667.0,0.001822]
[1726437825795,1.38257,59668.0,59667.0,0.002822]
[1726437826014,1.38257,59668.0,59667.0,0.001822]